bitfinex-derivatives/quotes_ETHF0:USTF0_20250217
["timestamp","ask_amount","ask_price","bid_price","bid_amount"]
[1739752612412,0.74888,2670.3,2669.9,5.8614252]
[1739752612607,0.74886,2670.4,2670.0,0.74894]
[1739752612809,0.74887,2670.3,2669.9,3.4025952]
[1739752613107,0.74889,2670.2,2669.9,2.6536252]
[1739752613402,0.74888,2670.3,2669.9,2.6536252]
[1739752613610,3.95665,2670.4,2670.1,0.74891]
[1739752614004,3.2078,2670.4,2670.1,0.74891]
[1739752614203,3.2078,2670.4,2669.9,2.6536252]
[1739752614404,4.2426,2670.5,2670.4,0.74884]
[1739752615105,1.7596,2670.5,2670.4,0.74884]
[1739752615303,0.6012,2670.5,2670.4,0.74884]
[1739752615813,4.3722,2671.1,2670.3,0.543]
[1739752616108,3.82658,2671.0,2670.7,0.74874]
[1739752617310,0.7487,2670.9,2670.4,3.7989]
[1739752617713,3.0779,2671.0,2670.4,3.2078]
[1739752617915,3.0779,2671.0,2670.4,3.95662]
[1739752618109,0.74874,2670.8,2670.4,3.95662]
[1739752618306,3.0779,2671.0,2670.4,3.2078]
[1739752618512,0.74871,2670.9,2670.6,0.74877]
[1739752619013,0.74873,2670.8,2670.5,0.74881]
[1739752619208,3.0779,2671.0,2670.4,3.2078]
[1739752619615,0.74877,2670.7,2670.3,0.543]
[1739752619816,4.173,2670.6,2670.3,1.29184]
[1739752620019,4.173,2670.6,2670.3,0.543]
[1739752620218,0.74884,2670.4,2670.1,0.74891]
[1739752620418,4.173,2670.6,2669.9,3.2002252]
[1739752620817,4.173,2670.6,2670.4,0.74882]
[1739752621415,0.74882,2670.5,2670.1,0.5837]
[1739752621715,0.74882,2670.5,2670.2,0.74889]
[1739752621921,0.74884,2670.4,2670.1,0.7489]
[1739752622115,3.2078,2670.5,2669.9,3.2002252]
[1739752622311,3.2078,2670.5,2670.3,0.74884]
[1739752622620,3.95663,2670.5,2670.2,0.74888]
[1739752623021,0.74885,2670.4,2670.1,0.7489]
[1739752623316,0.7489,2670.2,2669.9,1.29555]
[1739752623623,1.1186,2670.1,2670.0,0.74895]
[1739752623923,40.8,2670.4,2670.3,0.74887]
[1739752624119,40.8,2670.4,2670.2,0.74888]
[1739752624315,5.09003,2670.5,2670.2,0.74888]
[1739752624516,4.3412,2670.5,2670.3,0.74885]
[1739752624714,4.3412,2670.5,2670.4,0.74884]
[1739752625322,4.3412,2670.5,2670.2,0.74889]
[1739752625517,0.74885,2670.4,2670.1,0.74891]
[1739752625723,5.09003,2670.5,2670.2,0.74889]
[1739752626022,4.3412,2670.5,2670.4,0.74884]
[1739752626416,3.0666,2670.6,2670.5,0.74881]
[1739752626616,4.3845,2670.9,2670.8,0.74873]
[1739752626816,2.483,2671.1,2671.0,0.74866]
[1739752627220,2.483,2671.1,2670.8,0.00561808]
[1739752627520,2.483,2671.1,2670.9,0.74869]
[1739752627718,3.23166,2671.1,2670.8,0.00561808]
[1739752627919,3.23166,2671.1,2670.9,0.7487]
[1739752627920,0.5875,2671.0,2670.9,0.7487]
[1739752630221,0.5875,2671.0,2670.8,0.00561808]
[1739752630524,0.5875,2671.0,2670.8,0.75432808]
[1739752631424,0.5875,2671.0,2670.9,0.7487]
[1739752631625,0.5875,2671.0,2670.8,0.00561808]
[1739752632122,0.5875,2671.0,2670.8,0.75432808]
[1739752633129,0.5875,2671.0,2670.8,0.00561808]
[1739752633321,1.33618,2671.0,2670.8,0.75433808]
[1739752633627,0.5875,2671.0,2670.8,0.00561808]
[1739752633828,0.5875,2671.0,2670.9,0.7487]
[1739752634023,1.33618,2671.0,2670.8,0.75432808]
[1739752634522,0.5875,2671.0,2670.8,0.75431808]
[1739752634716,1.33617,2671.0,2670.8,0.75431808]
[1739752634920,1.33617,2671.0,2670.8,0.00561808]
[1739752635124,1.33617,2671.0,2670.8,0.75434808]
[1739752635320,0.5875,2671.0,2670.8,0.00561808]
[1739752635519,1.33618,2671.0,2670.8,0.75431808]
[1739752635720,0.5875,2671.0,2670.8,0.75431808]
[1739752635920,1.33617,2671.0,2670.8,0.75431808]
[1739752636520,1.33618,2671.0,2670.8,0.00561808]
[1739752636827,0.5875,2671.0,2670.8,0.00561808]
[1739752637026,0.7487,2670.9,2670.8,0.00561808]
[1739752637328,0.5875,2671.0,2670.8,0.00561808]
[1739752637828,0.7487,2670.9,2670.8,0.00561808]
[1739752638020,0.5875,2671.0,2670.8,0.00561808]
[1739752638215,0.5875,2671.0,2670.9,0.7487]
[1739752639027,0.7487,2670.9,2670.8,0.00561808]
[1739752640122,1.33619,2671.0,2670.8,0.75433808]
[1739752640322,0.5875,2671.0,2670.8,0.00561808]
[1739752640626,1.33617,2671.0,2670.8,0.75431808]
[1739752641025,0.5875,2671.0,2670.9,0.7487]
[1739752641433,1.33617,2671.0,2670.9,0.7487]
[1739752641621,0.5875,2671.0,2670.8,0.00561808]
[1739752641928,0.5875,2671.0,2670.9,0.7487]
[1739752642729,1.33618,2671.0,2670.8,0.00561808]
[1739752642925,1.33618,2671.0,2670.8,0.75434808]
[1739752643125,1.33618,2671.0,2670.8,0.00561808]
[1739752643429,0.7487,2670.9,2670.8,0.00561808]
[1739752644020,0.5875,2671.0,2670.8,0.00561808]
[1739752644319,2.483,2671.1,2670.8,0.00561808]
[1739752644526,2.483,2671.1,2670.9,0.74869]
[1739752644728,3.23165,2671.1,2670.9,0.74869]
[1739752645128,2.483,2671.1,2670.8,0.00561808]
[1739752645334,2.483,2671.1,2671.0,0.74867]
[1739752646930,2.483,2671.1,2670.8,0.59261808]
[1739752646931,2.483,2671.1,2670.8,0.00561808]
[1739752647132,0.7487,2670.9,2670.8,0.00561808]
[1739752647336,0.74869,2671.0,2670.8,0.00561808]
[1739752647527,3.23167,2671.1,2670.8,0.00561808]
[1739752647727,0.74868,2671.0,2670.8,0.75431808]
[1739752648037,2.483,2671.1,2670.8,0.00561808]
[1739752648629,2.483,2671.1,2670.9,0.74867]
[1739752648832,3.23165,2671.1,2670.9,0.74867]
[1739752649030,2.483,2671.1,2670.8,0.00561808]
[1739752649231,0.74868,2671.0,2670.8,0.75433808]
[1739752649737,3.2078,2670.9,2670.1,3.2078]
[1739752650033,0.5981,2670.8,2670.4,0.74883]
[1739752650331,2.483,2670.7,2670.2,0.5604]
[1739752650528,2.483,2670.7,2670.5,0.74879]
[1739752650728,2.483,2670.7,2670.5,0.74878]
[1739752651035,2.483,2670.7,2670.6,0.74878]
[1739752651538,3.23177,2670.7,2670.5,0.7488]
[1739752652029,2.483,2670.7,2670.3,0.00561808]
[1739752652221,2.483,2670.7,2670.6,0.74878]
[1739752652421,2.483,2670.7,2670.5,0.74879]
[1739752652621,2.483,2670.7,2670.6,0.74878]
[1739752653434,1.7726,2670.8,2670.3,1.87776808]
[1739752653631,2.483,2670.7,2670.6,0.74877]
[1739752654134,1.7726,2670.8,2670.7,0.74875]
[1739752654135,0.6001,2670.8,2670.7,0.74875]
[1739752654437,5.69641808,2670.9,2670.8,0.74873]
[1739752654736,2.48861808,2670.9,2670.8,0.74873]
[1739752655132,0.00561808,2670.9,2670.8,3.95653]
[1739752656135,0.00561808,2670.9,2670.8,0.74873]
[1739752658228,3.21341808,2670.9,2670.4,0.5415]
[1739752658434,0.74877,2670.7,2670.5,0.74881]
[1739752658735,3.21341808,2670.9,2670.4,0.5415]
[1739752659035,0.5764,2670.6,2670.5,0.74879]
[1739752660136,0.00561808,2670.9,2670.8,0.74873]
[1739752660333,2.48861808,2670.9,2670.8,3.4023552]
[1739752660539,0.00561808,2670.9,2670.8,3.4023552]
[1739752660741,0.00561808,2670.9,2670.8,3.9980552]
[1739752661636,0.00561808,2670.9,2670.8,0.5957]
[1739752661834,0.00561808,2670.9,2670.7,3.2078]
[1739752662033,0.74877,2670.7,2670.5,0.7488]
[1739752662229,0.00561808,2670.9,2670.4,0.74883]
[1739752662230,0.74881,2670.5,2670.4,0.74883]
[1739752662436,0.74881,2670.5,2670.3,2.11817608]
[1739752662835,0.74881,2670.5,2670.3,0.75446808]
[1739752663328,0.74881,2670.5,2670.3,0.75445808]
[1739752663539,0.74881,2670.5,2670.3,0.00561808]
[1739752663736,1.7323,2670.6,2670.5,0.74881]
[1739752663944,1.168,2670.6,2670.5,0.74881]
[1739752664139,0.574,2670.6,2670.5,0.74881]
[1739752665139,0.00561808,2670.9,2670.8,0.74873]
[1739752665942,0.00561808,2670.9,2670.8,3.4023552]
[1739752666348,0.00561808,2670.9,2670.8,3.9609552]
[1739752675248,0.00561808,2670.9,2670.8,3.4023552]
[1739752675547,0.57701808,2670.9,2670.8,0.74873]
[1739752678848,0.00561808,2670.9,2670.8,0.74873]
[1739752679350,0.00561808,2670.9,2670.8,3.4023552]
[1739752679946,0.00561808,2670.9,2670.8,0.74873]
[1739752681949,0.00561808,2670.9,2670.8,3.4023552]
[1739752682148,0.00561808,2670.9,2670.8,3.9645552]
[1739752682649,0.00561808,2670.9,2670.8,11.72460374]
[1739752682839,0.00561808,2670.9,2670.8,12.32240374]
[1739752683146,0.00561808,2670.9,2670.8,11.16240374]
[1739752683459,0.00561808,2670.9,2670.8,0.74873]
[1739752684151,0.57191808,2670.9,2670.8,0.74873]
[1739752684352,1.14091808,2670.9,2670.8,0.74873]
[1739752684542,1.14091808,2670.9,2670.7,3.95653]
[1739752684744,0.5562,2670.8,2670.7,3.95653]
[1739752684952,0.5562,2670.8,2670.3,0.00561808]
[1739752685156,2.482,2670.7,2670.3,0.00561808]
[1739752685451,2.482,2670.7,2670.5,0.74881]
[1739752685952,2.482,2670.7,2670.3,0.00561808]
[1739752686149,3.0382,2670.8,2670.5,2.6536252]
[1739752686342,3.0382,2670.8,2670.6,0.74876]
[1739752686751,3.0382,2670.8,2670.7,0.74875]
[1739752691254,3.0382,2670.8,2670.6,0.74876]
[1739752691453,3.0382,2670.8,2670.7,0.74875]
[1739752692046,3.78694,2670.8,2670.5,3.4024152]
[1739752692447,3.78694,2670.8,2670.6,0.74877]
[1739752692853,3.0382,2670.8,2670.7,0.74875]
[1739752693952,3.0382,2670.8,2670.5,2.6536252]
[1739752694258,0.74877,2670.7,2670.3,0.56111808]
[1739752694454,0.74877,2670.7,2670.5,0.7488]
[1739752694658,0.74876,2670.7,2670.5,0.7488]
[1739752694859,0.74876,2670.7,2670.5,0.74879]
[1739752695059,0.74876,2670.7,2670.6,0.74878]
[1739752695559,0.74875,2670.7,2670.6,0.74878]
[1739752695759,3.0382,2670.8,2670.7,0.74875]
[1739752696757,1.14091808,2670.9,2670.8,0.74873]
[1739752696964,1.14091808,2670.9,2670.8,3.4023552]
[1739752697152,0.57461808,2670.9,2670.8,3.4023552]
[1739752697348,0.00561808,2670.9,2670.8,3.4023552]
[1739752697752,0.00561808,2670.9,2670.8,6.6101552]
[1739752698066,0.00561808,2670.9,2670.8,7.1907552]
[1739752700965,0.00561808,2670.9,2670.8,15.10050489]
[1739752704863,3.2078,2672.0,2671.1,1.87155]
[1739752705061,0.74848,2671.7,2671.5,0.74852]
[1739752705262,0.74848,2671.7,2671.5,0.74851]
[1739752705664,0.74848,2671.7,2671.4,2.6536252]
[1739752705970,0.73628994,2671.7,2671.6,0.74849]
[1739752706365,3.6125,2671.9,2671.4,2.6536252]
[1739752706559,4.36093,2671.9,2671.4,2.6536252]
[1739752706866,3.6125,2671.9,2671.8,0.74845]
[1739752707066,4.36092,2671.9,2671.8,0.74845]
[1739752707267,3.6125,2671.9,2671.8,0.74845]
[1739752708163,1.7109,2671.9,2671.8,0.74845]
[1739752712169,2.45932,2671.9,2671.8,0.74845]
[1739752712469,1.7109,2671.9,2671.8,0.74845]
[1739752714670,1.1632,2671.9,2671.8,0.74845]
[1739752714964,0.5794,2671.9,2671.8,0.74845]
[1739752715173,0.5794,2671.9,2671.8,1.29125]
[1739752719873,4.38615,2672.2,2672.1,0.74836]
[1739752720068,4.1874,2672.2,2671.8,0.5428]
[1739752720278,0.7484,2672.0,2671.9,0.00561808]
[1739752720575,4.1874,2672.2,2671.9,0.00561808]
[1739752720774,0.74838,2672.1,2671.9,0.75401808]
[1739752721274,0.74839,2672.1,2671.9,0.00561808]
[1739752721472,0.74839,2672.1,2672.0,0.74839]
[1739752722276,0.74839,2672.0,2671.9,0.00561808]
[1739752725376,3.95619,2672.0,2671.9,0.00561808]
[1739752725677,0.74851,2671.6,2671.4,0.74856]
[1739752725874,1.1383,2671.5,2671.4,0.74856]
[1739752726682,1.88684,2671.5,2671.2,0.75420808]
[1739752727271,1.88684,2671.5,2671.3,0.74858]
[1739752727973,1.88684,2671.5,2671.2,0.00561808]
[1739752727974,1.1383,2671.5,2671.4,0.74856]
[1739752728381,1.1383,2671.5,2671.4,3.4021852]
[1739752729078,2.48,2671.6,2671.4,2.6536252]
[1739752729271,0.58821808,2671.7,2671.5,0.572]
[1739752729472,0.58821808,2671.7,2671.3,3.2078]
[1739752729473,0.74855,2671.5,2671.3,3.2078]
[1739752729673,0.5919,2671.4,2671.3,3.2078]
[1739752729874,0.5919,2671.4,2671.3,3.95639]
[1739752730285,0.5919,2671.4,2671.3,3.2078]
[1739752730789,0.5919,2671.4,2671.3,3.95639]
[1739752731084,1.34046,2671.4,2671.3,3.2078]
[1739752731284,1.34046,2671.4,2671.2,0.00561808]
[1739752731285,0.74859,2671.3,2671.2,0.00561808]
[1739752731475,14.9333252,2671.4,2670.6,1.363708]
[1739752731680,0.74869,2671.0,2670.7,0.74875]
[1739752731879,3.0373,2670.9,2670.7,0.74875]
[1739752732178,3.0373,2670.9,2670.8,0.74873]
[1739752732374,3.0373,2670.9,2670.5,2.9477206]
[1739752732581,0.74877,2670.7,2670.5,2.6536252]
[1739752732892,0.74877,2670.7,2670.4,1.90193]
[1739752732893,0.5827,2670.6,2670.4,1.90754808]
[1739752733075,0.5827,2670.6,2670.4,1.15871808]
[1739752733278,0.5827,2670.6,2670.5,3.4024352]
[1739752733482,0.5573,2670.9,2670.8,0.74873]
[1739752733693,2.48,2670.9,2670.8,0.74873]
[1739752734777,3.2078,2671.2,2670.6,3.7854]
[1739752734983,5.6878,2671.2,2671.1,0.74864]
[1739752735186,5.6878,2671.2,2670.8,2.6536252]
[1739752735187,6.43643,2671.2,2670.8,2.6536252]
[1739752735382,0.5984,2671.1,2670.9,1.8846]
[1739752736402,0.74868,2671.0,2670.7,0.74875]
[1739752736701,1.89008,2671.0,2670.7,0.74875]
[1739752737000,0.7487,2670.9,2670.6,3.95657]
[1739752737189,0.74874,2670.8,2670.6,3.2078]
[1739752737389,0.74871,2670.9,2670.6,3.95656]
[1739752737584,0.5969,2670.7,2670.6,3.2078]
[1739752737990,3.2078,2671.2,2670.6,3.2078]
[1739752738197,3.22865,2671.1,2670.8,0.7487]
[1739752738990,3.22865,2671.1,2670.7,0.5759]
[1739752739196,2.48,2671.1,2670.7,0.5759]
[1739752739501,2.48,2671.1,2671.0,0.74867]
[1739752740598,2.48,2671.1,2670.8,2.6536252]
[1739752740897,7.60223,2671.2,2670.9,0.74869]
[1739752741098,7.60223,2671.2,2670.8,2.6536252]
[1739752741395,0.74867,2671.0,2670.8,3.4023552]
[1739752741700,0.74869,2671.0,2670.7,1.32465]
[1739752741893,0.7487,2670.9,2670.7,1.32465]
[1739752742091,0.5523,2670.8,2670.7,1.32465]
[1739752742292,1.1373,2670.8,2670.7,1.32465]
[1739752743191,0.74876,2670.7,2670.5,3.9535252]
[1739752743494,0.5955,2670.7,2670.5,3.9535152]
[1739752743695,0.5955,2670.7,2670.6,0.74878]
[1739752743998,0.5955,2670.7,2670.5,2.6536252]
[1739752744193,0.74881,2670.5,2670.4,0.00561808]
[1739752746301,0.74881,2670.5,2669.6,0.29742209]
[1739752746302,6.0,2670.5,2669.6,3.2541252]
[1739752746505,0.74896,2670.0,2669.6,4.5691752]
[1739752746806,1.7346,2669.9,2669.6,4.5691752]
[1739752747005,0.74902,2669.8,2669.4,3.2078]
[1739752747197,4.9424,2669.9,2669.6,0.74906]
[1739752747395,5.69138,2669.9,2669.4,3.2078]
[1739752747599,4.9424,2669.9,2669.5,0.75468808]
[1739752747795,5.69139,2669.9,2669.6,0.74906]
[1739752748007,5.69139,2669.9,2669.5,0.00561808]
[1739752748210,5.69139,2669.9,2669.5,0.75468808]
[1739752748501,4.9424,2669.9,2669.5,0.00561808]
[1739752748705,0.74905,2669.7,2669.5,0.00561808]
[1739752748904,2.48,2669.6,2669.5,0.00561808]
[1739752750808,3.22906,2669.6,2669.5,0.00561808]
[1739752751002,2.48,2669.6,2669.5,0.00561808]
[1739752751405,2.48,2669.6,2669.5,0.75470808]
[1739752753303,0.00561808,2670.0,2669.5,0.00561808]
[1739752753609,2.48661808,2670.0,2669.9,0.74898]
[1739752753798,2.48661808,2670.0,2669.9,1.91248]
[1739752754598,0.00561808,2670.0,2669.9,1.91248]
[1739752757709,3.21341808,2670.0,2669.8,2.6536252]
[1739752758314,0.74898,2669.9,2669.8,2.6536252]
[1739752759404,0.74903,2669.7,2669.6,0.5835]
[1739752759606,0.74905,2669.7,2669.5,6.12994328]
[1739752759913,3.0348,2669.8,2669.6,0.74904]
[1739752760213,3.78381,2669.8,2669.6,0.74904]
[1739752760414,3.78381,2669.8,2669.5,6.12994328]
[1739752760614,3.78381,2669.8,2669.5,6.87900328]
[1739752760808,3.78381,2669.8,2669.6,0.74906]
[1739752761212,2.481,2669.8,2669.5,6.12994328]
[1739752761414,2.481,2669.8,2669.5,6.87901328]
[1739752761610,0.74904,2669.7,2669.5,6.87901328]
[1739752762009,3.23003,2669.8,2669.5,6.12994328]
[1739752762209,0.74904,2669.7,2669.5,6.87902328]
[1739752762409,3.23002,2669.8,2669.6,0.74905]
[1739752763012,0.5794,2669.9,2669.8,0.74901]
[1739752763214,2.481,2669.9,2669.8,0.74901]
[1739752764015,2.481,2669.9,2669.5,3.77694328]
[1739752764319,3.23,2669.9,2669.7,0.74903]
[1739752764515,2.481,2669.9,2669.7,0.74903]
[1739752764718,3.22999,2669.9,2669.7,0.74903]
[1739752765418,3.22998,2669.9,2669.7,0.74902]
[1739752766415,2.481,2669.9,2669.8,0.74901]
[1739752766811,2.481,2669.9,2669.5,3.77694328]
[1739752767224,3.22999,2669.9,2669.7,0.74902]
[1739752767413,2.481,2669.9,2669.7,0.74902]
[1739752767615,3.22998,2669.9,2669.5,3.77694328]
[1739752767923,3.23,2669.9,2669.7,0.74901]
[1739752768323,2.481,2669.9,2669.5,3.77694328]
[1739752768623,2.481,2669.9,2669.8,0.74901]
[1739752768819,0.00561808,2670.0,2669.9,0.74898]
[1739752769020,2.48661808,2670.0,2669.9,1.32458]
[1739752769618,0.00561808,2670.0,2669.9,1.32458]
[1739752770016,0.00561808,2670.0,2669.9,0.5756]
[1739752770218,0.75456808,2670.0,2669.9,0.5756]
[1739752770424,0.00561808,2670.0,2669.9,1.32458]
[1739752770619,0.00561808,2670.0,2669.9,1.87048]
[1739752771525,0.00561808,2670.0,2669.9,0.74898]
[1739752772323,0.00561808,2670.0,2669.8,2.6536252]
[1739752772324,0.00561808,2670.0,2669.8,3.4026052]
[1739752772525,0.75456808,2670.0,2669.8,3.4026052]
[1739752772723,0.00561808,2670.0,2669.8,3.4026052]
[1739752773223,0.75456808,2670.0,2669.8,2.6536252]
[1739752773419,0.00561808,2670.0,2669.7,4.3704]
[1739752773620,0.00561808,2670.0,2669.8,0.74898]
[1739752773826,0.00561808,2670.0,2669.7,4.3704]
[1739752774027,0.74901,2669.8,2669.7,4.3704]
[1739752774229,0.00561808,2670.0,2669.7,4.3704]
[1739752774528,0.00561808,2670.0,2669.8,0.74899]
[1739752774730,0.74899,2669.9,2669.7,5.11942]
[1739752775034,0.00561808,2670.0,2669.7,4.3704]
[1739752775332,0.00561808,2670.0,2669.9,0.74898]
[1739752780017,0.75458808,2670.0,2669.7,4.55732]
[1739752780225,0.74899,2669.9,2669.7,3.8083]
[1739752780425,1.29499,2669.9,2669.7,4.55732]
[1739752780632,0.5912,2669.8,2669.7,3.8083]
[1739752780924,0.5912,2669.8,2669.7,1.34953]
[1739752781128,0.5912,2669.8,2669.7,0.6005]
[1739752781430,0.5912,2669.8,2669.7,1.34953]
[1739752781834,0.5912,2669.8,2669.7,0.74903]
[1739752782431,0.546,2669.9,2669.6,0.5453]
[1739752782731,0.546,2669.9,2669.8,3.4026352]
[1739752784927,0.00561808,2670.0,2669.9,0.74898]
[1739752785233,0.00561808,2670.0,2669.9,1.34248]
[1739752787234,0.75456808,2670.0,2669.9,0.5935]
[1739752787733,0.00561808,2670.0,2669.9,1.34248]
[1739752788434,0.00561808,2670.0,2669.9,0.5935]
[1739752788629,0.00561808,2670.0,2669.9,1.34248]
[1739752788841,0.75458808,2670.0,2669.8,2.6536252]
[1739752789139,0.75457808,2670.0,2669.8,3.4026152]
[1739752789639,0.75457808,2670.0,2669.9,0.74898]
[1739752789836,0.75457808,2670.0,2669.8,2.6536252]
[1739752790133,0.75457808,2670.0,2669.9,0.74898]
[1739752790732,0.00561808,2670.0,2669.9,0.74898]
[1739752791833,0.00561808,2670.0,2669.8,2.6536252]
[1739752792027,0.75457808,2670.0,2669.9,0.74898]
[1739752792635,0.00561808,2670.0,2669.9,0.74898]
[1739752795132,0.00561808,2670.0,2669.8,2.6536252]
[1739752795334,0.00561808,2670.0,2669.7,0.5966]
[1739752795833,0.74898,2669.9,2669.7,0.5966]
[1739752796036,0.00561808,2670.0,2669.6,0.5453]
[1739752796338,0.00561808,2670.0,2669.5,4.02295128]
[1739752796339,1.30072,2669.8,2669.5,0.75469808]
[1739752796539,0.5963,2669.7,2669.5,0.75469808]
[1739752796735,1.92614,2669.7,2669.5,0.75469808]
[1739752796940,0.74906,2669.6,2669.5,0.00561808]
[1739752800540,41.54906,2669.6,2669.5,0.00561808]
[1739752801541,0.74931,2668.8,2668.5,1.363708]
[1739752801740,4.53932,2668.7,2668.5,1.952908]
[1739752801946,0.74934,2668.6,2668.4,0.5436]
[1739752802145,3.0376,2668.6,2668.3,3.2078]
[1739752802348,3.78696,2668.6,2668.3,3.2078]
[1739752802540,3.0376,2668.6,2668.3,3.2078]
[1739752802942,3.0376,2668.6,2668.3,3.95721]
[1739752803145,3.78695,2668.6,2668.3,3.95721]
[1739752803341,3.2078,2669.3,2669.2,0.74917]
[1739752803550,7.4067,2669.3,2669.1,0.74919]
[1739752803839,7.4067,2669.3,2669.2,0.74917]
[1739752803840,6.8491,2669.3,2669.2,0.74917]
[1739752804140,3.79,2669.3,2669.2,0.74917]
[1739752804348,2.481,2669.6,2669.5,0.74909]
[1739752804541,0.5455,2669.8,2669.7,0.74903]
[1739752804542,0.554,2669.8,2669.7,0.74903]
[1739752804732,3.035,2669.8,2669.7,0.74903]
[1739752805139,2.481,2669.8,2669.7,0.74903]
[1739752805339,3.21341808,2670.0,2669.6,0.5926]
[1739752805542,3.21341808,2670.0,2669.9,0.74898]
[1739752805744,0.00561808,2670.0,2669.9,0.74898]
[1739752806344,0.00561808,2670.0,2669.7,0.00561808]
[1739752806345,3.21341808,2670.0,2669.7,0.00561808]
[1739752806543,0.554,2669.9,2669.7,0.00561808]
[1739752806938,0.554,2669.9,2669.8,0.74901]
[1739752807146,3.21341808,2670.0,2669.7,0.00561808]
[1739752807147,0.00561808,2670.0,2669.7,0.00561808]
[1739752807347,0.00561808,2670.0,2669.9,0.74898]
[1739752807534,0.00561808,2670.0,2669.8,2.6536252]
[1739752807942,0.00561808,2670.0,2669.7,0.75462808]
[1739752808341,0.00561808,2670.0,2669.7,0.00561808]
[1739752808543,0.00561808,2670.0,2669.9,0.74898]
[1739752808751,0.00561808,2670.0,2669.9,3.4026052]
[1739752809350,0.00561808,2670.0,2669.9,6.6104052]
[1739752810445,3.2078,2670.6,2670.5,0.74881]
[1739752810446,5.6878,2670.6,2670.5,0.74881]
[1739752810645,3.2078,2670.6,2670.5,0.74881]
[1739752810847,5.6878,2670.6,2670.5,0.74881]
[1739752812247,5.6878,2670.6,2670.3,0.74886]
[1739752813047,6.43658,2670.6,2670.3,0.74886]
[1739752813245,0.74881,2670.5,2670.0,0.5645]
[1739752813446,0.74881,2670.5,2669.9,2.6536252]
[1739752813649,6.43659,2670.6,2669.9,2.6536252]
[1739752813949,2.48,2670.6,2670.5,0.74881]
[1739752814151,0.5894,2670.7,2670.6,0.74878]
[1739752814354,0.5894,2670.7,2670.3,1.172]
[1739752814648,3.95659,2670.6,2670.2,0.74888]
[1739752814853,3.2078,2670.6,2669.9,0.5911]
[1739752815050,3.2078,2670.6,2670.2,0.74889]
[1739752815251,3.95661,2670.6,2670.2,0.74889]
[1739752815858,3.95661,2670.6,2669.9,3.2447252]
[1739752816247,0.74881,2670.5,2670.2,0.74888]
[1739752816555,0.74881,2670.5,2670.1,0.74891]
[1739752816556,3.2078,2670.3,2670.1,0.74891]
[1739752816743,3.2078,2670.3,2669.7,0.00561808]
[1739752816948,1.1238,2670.2,2670.0,0.74894]
[1739752817252,1.1238,2670.2,2670.1,0.74892]
[1739752817753,3.0297,2670.2,2670.1,0.74892]
[1739752818144,5.6878,2670.3,2670.2,0.74889]
[1739752818449,5.6878,2670.3,2670.0,1.149]
[1739752818657,5.6878,2670.3,2670.0,1.89794]
[1739752818858,0.5497,2670.2,2670.0,1.89794]
[1739752819153,0.5497,2670.2,2670.0,1.149]
[1739752819346,0.5497,2670.2,2670.1,0.74892]
[1739752819750,0.5497,2670.2,2670.0,0.5575]
[1739752819950,0.5497,2670.2,2670.1,0.74892]
[1739752820245,0.5497,2670.2,2670.0,1.30644]
[1739752820654,0.5497,2670.2,2670.1,0.74892]
[1739752821555,0.5497,2670.2,2670.0,0.5575]
[1739752821756,5.6878,2670.3,2670.0,0.5575]
[1739752822058,5.6878,2670.3,2670.2,0.74889]
[1739752822354,3.7789,2670.6,2670.5,0.74881]
[1739752822548,0.5711,2670.6,2670.5,0.74881]
[1739752822758,3.0511,2670.6,2670.5,0.74881]
[1739752823252,0.5711,2670.6,2670.5,0.74881]
[1739752823453,2.48,2670.7,2670.6,0.74878]
[1739752823755,0.00561808,2670.8,2670.7,0.74875]
[1739752824149,0.00561808,2670.8,2670.6,1.34157]
[1739752824353,0.00561808,2670.8,2670.6,0.5928]
[1739752824755,0.00561808,2670.8,2670.7,0.74875]
[1739752825644,0.00561808,2670.8,2670.6,0.5928]
[1739752825846,0.00561808,2670.8,2670.6,1.34157]
[1739752826056,0.00561808,2670.8,2670.7,0.74875]
[1739752826449,0.00561808,2670.8,2670.6,0.5928]
[1739752826959,0.00561808,2670.8,2670.7,0.74875]
[1739752836361,0.00561808,2670.8,2670.6,0.5928]
[1739752836562,0.00561808,2670.8,2670.7,0.74875]
[1739752837854,0.00561808,2670.8,2670.6,0.5928]
[1739752838555,0.00561808,2670.8,2670.7,0.74875]
[1739752839753,0.54961808,2670.8,2670.5,2.6536252]
[1739752839951,0.54961808,2670.8,2670.4,3.2078]
[1739752840151,0.74881,2670.5,2670.3,1.34156]
[1739752840351,0.5915,2670.4,2670.2,0.547]
[1739752840554,0.5656,2670.3,2670.0,0.5927]
[1739752840754,1.1404,2670.3,2670.1,0.74891]
[1739752841159,1.88928,2670.3,2670.0,0.74894]
[1739752841353,1.1404,2670.3,2670.1,0.74892]
[1739752841555,1.1404,2670.3,2669.9,2.6536252]
[1739752841754,1.1404,2670.3,2670.0,0.74893]
[1739752841755,1.88927,2670.3,2670.0,0.74893]
[1739752842067,1.88927,2670.3,2670.1,0.74891]
[1739752842359,1.88929,2670.3,2670.0,0.74893]
[1739752842659,3.2078,2670.1,2669.9,2.6536252]
[1739752842855,0.74896,2670.0,2669.8,0.5587]
[1739752843058,1.33026,2670.0,2669.8,0.5587]
[1739752843257,0.5813,2670.0,2669.7,0.00561808]
[1739752843460,3.95681,2669.8,2669.7,0.00561808]
[1739752843966,44.75681,2669.8,2669.7,0.00561808]
[1739752844867,44.0078,2669.8,2669.7,0.00561808]
[1739752845160,0.5813,2670.0,2669.7,0.00561808]
[1739752845359,0.5813,2670.0,2669.7,0.75462808]
[1739752845564,0.5813,2670.0,2669.7,0.00561808]
[1739752846468,3.95681,2669.8,2669.7,0.00561808]
[1739752847861,9.95681,2669.8,2669.7,0.00561808]
[1739752848056,9.2078,2669.8,2668.9,0.74924]
[1739752848259,0.5813,2670.0,2668.7,5.5686252]
[1739752848260,3.2078,2669.4,2668.8,0.5935]